Cogmind - Beta 16 --- EXPLORER MODE // 2025.11.22 @ 15:22:55 // AFD2020/Player2 Player: RR-3MY Result: Core destroyed Performance ------------- Evolutions (0) 0 Regions Visited (3) 600 Robots Destroyed (15) 75 Value Destroyed (339) 339 Prototype IDs (3) 60 Alien Tech Used (0) 0 Bonus (3) 3 TOTAL SCORE: 1077 Bonus ------- Follower Combat Kills 42 Friendly Fire -39 Cogmind --------- Core Integrity 0/250 Matter 290/300 Energy 68/100 System Corruption 1% Temperature Cool (0) Movement Rolling (100) Location -10/Subcaves Parts ------- > --- POWER (1) -------- (None) > --- PROPULSION (2) --- Compact Wheel Compact Wheel > --- UTILITY (3) ------ Medium Storage Unit Structural Scanner Light Armor Plating > --- WEAPON (2) ------- Medium Laser Light Assault Rifle > --- INVENTORY (10) --- Medium Storage Unit High-capacity Matter Pod (200) Grenade Launcher Mining Laser Peak State ------------ > --- POWER ------------ Backup Power I > --- PROPULSION ------- Compact Wheel Compact Wheel > --- UTILITY ---------- Medium Storage Unit Structural Scanner Seismic Detector > --- WEAPON ----------- Medium Laser Medium Laser > --- INVENTORY -------- Small Storage Unit High-capacity Matter Pod Terrain Scan Processor Light Armor Plating Light Armor Plating Beam Cannon Beam Cannon Grenade Launcher Mining Laser [Rating: 9] Favorites ----------- Power Backup Power I Engine Backup Power I Propulsion Compact Wheel Leg Aluminum Leg Wheel Compact Wheel Hover Unit Backup Propulsion I Utility Seismic Detector Device Seismic Detector Storage Medium Storage Unit Protection Light Armor Plating Weapon Medium Laser Energy Gun Medium Laser Energy Cannon Beam Cannon Ballistic Gun Assault Rifle Launcher Grenade Launcher Special Weapon Mining Laser Build | -11 -10 -10 -10 ------- Run | Yrd Mat Min Sub Slots Evolved 1 | . 1 . . Power . | . . . . Propulsion . | . . . . Utility 1 | . 1 . . Weapon . | . . . . Parts Attached 24 | 8 13 . 3 Power 1 | 1 . . . Engine 1 | 1 . . . Core . | . . . . Reactor . | . . . . Propulsion 6 | 2 4 . . Treads . | . . . . Leg 2 | 2 . . . Wheel 3 | . 3 . . Hover 1 | . 1 . . Flight . | . . . . Utility 7 | 3 3 . 1 Device 3 | 1 2 . . Storage 2 | 1 1 . . Processor . | . . . . Hackware . | . . . . Protection 2 | 1 . . 1 Artifact . | . . . . Weapon 10 | 2 6 . 2 Energy Gun 4 | . 4 . . Energy Cannon 1 | . 1 . . Ballistic Gun 3 | 2 . . 1 Ballistic Cannon . | . . . . Launcher 1 | . . . 1 Special Weapon 1 | . 1 . . Impact Weapon . | . . . . Slashing Weapon . | . . . . Piercing Weapon . | . . . . Special Melee Weapon . | . . . . Unidentified Prototypes . | . . . . Parts Lost 3 | . . 3 . Power 1 | . . 1 . Propulsion . | . . . . Utility 1 | . . 1 . Weapon 1 | . . 1 . Highest Loss Streak 3 | . . 3 . To Critical Strikes . | . . . . Average Backups 5 | 1 5 8 4 Power . | . . . . Propulsion . | . . . . Utility 2 | 1 2 4 2 Weapon 2 | . 2 4 2 Tool/Special . | . . . . Unused Backups 6 | . 1 . 5 Power . | . . . . Propulsion . | . . . . Utility 5 | . 1 . 4 Weapon 1 | . . . 1 Tool/Special . | . . . . Average Slot Usage (%) 89 | . 95 93 74 Engine 8 | . 12 9 . Leg 1 | . 2 . . Wheel 12 | . 5 25 25 Hover 11 | . 17 . . Device 18 | . 20 22 12 Storage 12 | . 12 12 12 Protection 2 | . . . 11 Energy Gun 17 | . 18 24 12 Energy Cannon 1 | . 1 . . Ballistic Gun 1 | . 2 . . Special Weapon 1 | . 1 . . Peak Build Rating 9 | 7 8 9 7 Average Rating 7 | 5 7 8 6 On Entrance 5 | . 7 8 6 Avg Prop Armor Cover (%) 5 | . 5 . . Naked Turns . | . . . . Heaviest Build 21 | 21 19 17 19 Greatest Support 32 | 20 32 32 32 Greatest Overweight (x) 5 | 5 3 . . Average Overweight (x) . | . . . . Largest Inventory Capacity 10 | 10 10 10 10 Average Capacity 9 | 9 8 10 10 Most Carried 9 | 4 8 9 8 Average Carried 5 | 1 5 8 4 Final Capacity 10 | 10 10 10 10 Final Carried 9 | 4 8 9 4 Class Distribution -------------------- 100% | Hacker-Mutant Dominant Class ---------------- Hacker-Mutant | -10/Materials Hacker-Mutant | -10/Mines Hacker-Mutant | -10/Subcaves Resources | -11 -10 -10 -10 ----------- Run | Yrd Mat Min Sub Matter Collected 537 | 249 239 11 38 Remotely . | . . . . Salvage Created 445 | 75 251 90 29 Parts 29 | 5 15 4 5 Haulers Intercepted . | . . . . Recyclers Shooed 1 | 1 . . . Parts Field Recycled . | . . . . Retrieved Matter . | . . . . Parts Self-Destructed . | . . . . Prevented . | . . . . Parts Restored . | . . . . Kills | -11 -10 -10 -10 ------- Run | Yrd Mat Min Sub Combat Hostiles Destroyed 11 | . 7 2 2 Guns 10 | . 7 1 2 Classes Destroyed 7 | 2 4 1 . Builder 1 | . 1 . . Tunneler 1 | 1 . . . Recycler 1 | 1 . . . Watcher 1 | . 1 . . Swarmer 5 | . 3 . 2 Grunt 4 | . 4 . . Demolisher 2 | . . 2 . Best Kill Streak 4 | 2 4 2 2 Combat Bots Only 2 | . 2 2 2 Max Kills in Single Turn 2 | 1 2 1 1 Gunslinging . | . . . . Exploded . | . . . . Melee . | . . . . Uniques/NPCs Destroyed . | . . . . Combat | -11 -10 -10 -10 -------- Run | Yrd Mat Min Sub Hostile Shots Fired 46 | . 37 5 4 Missed 16 | . 13 2 1 Hits 30 | . 24 3 3 Projectile 30 | . 24 3 3 AOE 12 | . . 12 . Critical Strikes 1 | . . . 1 Damage Taken 418 | . 153 251 14 Core 89 | . 36 49 4 Absorbed by Shields . | . . . . Ignored by Resistances 252 | . 104 138 10 Core Remaining (%) 100 | 100 . . . Volleys Fired 47 | 4 34 6 3 Largest 2 | 2 2 2 1 Hottest 100 | 40 100 100 50 Shots Fired 79 | 8 57 11 3 Gun 69 | 8 47 11 3 Cannon . | . . . . Launcher . | . . . . Special 10 | . 10 . . Kinetic 9 | 8 1 . . Thermal 70 | . 56 11 3 Explosive . | . . . . Electromagnetic . | . . . . Robot Hit Streak 28 | 6 26 28 11 Robot Miss Streak 1 | . 1 1 . Penetration Max . | . . . . Secondary Targets 2 | . 2 . . Max Gunslinging Chain 1 | . 1 . . Shots Hit Robots 58 | 6 39 10 3 Core Hits 27 | 3 18 4 2 Critical Kills . | . . . . Critical Parts Destroyed 1 | 1 . . . Critical Strikes 4 | 1 2 1 . Burn 3 | . 2 1 . Destroy 1 | 1 . . . Melee Attacks . | . . . . Impact . | . . . . Slashing . | . . . . Piercing . | . . . . Sneak Attacks . | . . . . Combat Hostiles . | . . . . Follow-up Attacks . | . . . . Damage Inflicted 670 | 64 444 123 39 Guns 670 | 64 444 123 39 Cannons . | . . . . Explosions . | . . . . Melee . | . . . . Ramming . | . . . . Kinetic 77 | 64 13 . . Thermal 593 | . 431 123 39 Explosive . | . . . . Electromagnetic . | . . . . Impact . | . . . . Slashing . | . . . . Piercing . | . . . . Highest Corruption 1 | . 1 1 1 Average Corruption 1 | . 1 1 1 Corruption Purged . | . . . . Corruption Blocked . | . . . . Effects 5 | . . 1 4 Matter Fused 2 | . . . 2 Energy Discharges 1 | . . . 1 Data Loss (major) 1 | . . . 1 Weapon Failures 1 | . . 1 . Overload Shots . | . . . . Overflow Damage . | . . . . Projectiles . | . . . . Explosions . | . . . . Melee . | . . . . Knockbacks . | . . . . Impact . | . . . . Kinetic . | . . . . Secondary . | . . . . Self-Inflicted Damage . | . . . . Shots . | . . . . Rammed . | . . . . Targets Rammed . | . . . . Kicked . | . . . . Crushed . | . . . . Highest Temperature 181 | . 181 72 . Average Temperature 37 | . 37 34 . Received Heat Transfer 81 | . 81 . . Siege Activations . | . . . . Martial Activations . | . . . . Shielding Activations . | . . . . Robots Disrupted . | . . . . Combat Hostiles . | . . . . Robots Corrupted . | . . . . Combat Hostiles . | . . . . Parts Fried . | . . . . Impact Corruptions . | . . . . Robots Melted 1 | . . 1 . Combat Hostiles 1 | . . 1 . Parts Melted 5 | . 1 4 . Heat Transferred 2220 | . 1665 444 111 Parts Sabotaged . | . . . . Parts Stolen . | . . . . Parts Stripped . | . . . . Power Chain Reactions . | . . . . Alert | -11 -10 -10 -10 ------- Run | Yrd Mat Min Sub Maximum Alert Level . | . . . . Low Security (%) 100 | 100 100 100 . Level 1 . | . . . . Level 2 . | . . . . Level 3 . | . . . . Level 4 . | . . . . Level 5 . | . . . . High Security . | . . . . Max Security . | . . . . Peak Influence 109 | 5 109 22 . Initial 6 | . . 6 . Average 18 | . 23 3 . Influence Increases 503 | 10 387 53 53 Destroy 0b10 Robot/C 280 | . 200 40 40 Destroy 0b10 Robot/NC 30 | 10 20 . . Destroy Leader 76 | . 56 10 10 Allied During Kill 20 | . 14 3 3 Successful Hack 26 | . 26 . . Select Force Hacks 30 | . 30 . . Destroy Structure 11 | . 11 . . Partial Spotted 15 | . 15 . . Lose Combat Pursuer 15 | . 15 . . Influence Decreases 471 | 10 364 75 22 Entered New Map 18 | . . 17 1 Time Decay 397 | 10 364 8 15 Lost Part 56 | . . 50 6 Squads Dispatched 1 | . 1 . . Investigation 1 | . 1 . . Extermination . | . . . . Reinforcement . | . . . . Assault . | . . . . Garrison . | . . . . Intercept . | . . . . Searches Triggered . | . . . . Construction Impeded . | . . . . Haulers Reinforced . | . . . . Active Scanning Responses . | . . . . Cargo Convoy Interrupts . | . . . . Stealth | -11 -10 -10 -10 --------- Run | Yrd Mat Min Sub Distress Signals 1 | . 1 . . Communications Jammed . | . . . . Distress Signals . | . . . . Times Spotted 22 | . 16 4 2 Peak Tracking Total 3 | . 3 2 2 Tactical Retreats 1 | . 1 . . Traps | -11 -10 -10 -10 ------- Run | Yrd Mat Min Sub Traps Triggered 2 | . 2 . . Indirectly . | . . . . Trap Hack Attempts . | . . . . Triggered . | . . . . Disarmed . | . . . . Reprogrammed . | . . . . Reused . | . . . . Traps Extracted . | . . . . Installed . | . . . . Triggered . | . . . . Machines | -11 -10 -10 -10 ---------- Run | Yrd Mat Min Sub Machines Disabled . | . . . . Max in Single Turn . | . . . . Machines Repaired . | . . . . Machines Dismantled . | . . . . Machines Sabotaged . | . . . . Overloaded Fab Kills . | . . . . Hacking | -11 -10 -10 -10 --------- Run | Yrd Mat Min Sub Machines Accessed 9 | . 9 . . Terminals 6 | . 6 . . Fabricators . | . . . . Repair Stations 1 | . 1 . . Recycling Units 2 | . 2 . . Scanalyzers . | . . . . Garrison Access . | . . . . Total Hacks 27 | . 27 . . Successful 19 | . 19 . . Failed 8 | . 8 . . Catastrophic . | . . . . Database Lockouts . | . . . . Manual 11 | . 11 . . Terminals 21 | . 21 . . Fabricators . | . . . . Repair Stations 1 | . 1 . . Recycling Units 5 | . 5 . . Scanalyzers . | . . . . Garrison Access . | . . . . Terminal Hacks 6 | . 6 . . Robot Analysis 1 | . 1 . . Prototype ID Bank 2 | . 2 . . Recycling Unit Index 1 | . 1 . . Hauler Manifests 1 | . 1 . . Zone Layout 1 | . 1 . . Fabricator Hacks . | . . . . Repair Station Hacks 1 | . 1 . . Refit 1 | . 1 . . Recycling Unit Hacks 2 | . 2 . . Report Inventory 1 | . 1 . . Retrieve Components 1 | . 1 . . Scanalyzer . | . . . . Garrison Access Hacks . | . . . . Unauthorized Hacks 10 | . 10 . . Terminals 9 | . 9 . . Botnet 3 | . 3 . . Skim 6 | . 6 . . Fabricators . | . . . . Repair Stations . | . . . . Recycling Units 1 | . 1 . . Tunnel 1 | . 1 . . Scanalyzers . | . . . . Garrison Access . | . . . . Data Cores Recovered . | . . . . Used . | . . . . Hacking Detections 6 | . 6 . . Full Trace Events 1 | . 1 . . Feedback Events . | . . . . Feedback Blocked . | . . . . Robot Schematics Acquired . | . . . . Robots Built . | . . . . Authchips . | . . . . Time . | . . . . Total Robot Build Rating . | . . . . Part Schematics Acquired . | . . . . Parts Built . | . . . . Authchips . | . . . . Time . | . . . . Total Part Build Rating . | . . . . Part Studies Acquired . | . . . . Parts Repaired . | . . . . Time . | . . . . Parts Recycled . | . . . . Recycled Matter . | . . . . Retrieved Matter . | . . . . Retrieved Components 7 | . 7 . . Parts Scanalyzed . | . . . . Part Schematics Acquired . | . . . . Parts Damaged . | . . . . Bothacking | -11 -10 -10 -10 ------------ Run | Yrd Mat Min Sub Used RIF Installer . | . . . . Robots Hacked . | . . . . Non-combat . | . . . . Combat . | . . . . Robot Hacks Applied . | . . . . Relay Couplers Released . | . . . . Fabnet Peak Effective % . | . . . . Robots Rewired . | . . . . Allies Hacked . | . . . . Hacks Repelled . | . . . . Allies | -11 -10 -10 -10 -------- Run | Yrd Mat Min Sub Total Allies 1 | . 1 . . Largest Group 1 | . 1 1 1 Highest-Rated Group 57 | . 57 57 57 Highest-Rated Ally 57 | . 57 57 57 Total Orders . | . . . . Ally Attacks 40 | . 20 9 11 Total Damage 346 | . 253 93 . Kills 5 | . 5 . . Allies Corrupted . | . . . . Allies Melted . | . . . . Intel | -11 -10 -10 -10 ------- Run | Yrd Mat Min Sub Active Infowar (turns) 1445 | 26 935 118 366 Terrain 546 | . 546 . . Structural 588 | . 104 118 366 Seismic 1051 | 26 935 90 . Robot Analysis Total 1 | . 1 . . Derelict Logs Recovered . | . . . . Drone Launches . | . . . . Drone Recoveries . | . . . . Exploration | -11 -10 -10 -10 ------------- Run | Yrd Mat Min Sub Turns Passed 1571 | 152 935 118 366 Spaces Moved 1255 | 79 734 91 351 Core 17 | 16 1 . . Treads . | . . . . Legs 130 | 63 67 . . Wheels 593 | . 151 91 351 Hover 515 | . 515 . . Flight . | . . . . Fastest Speed 50 | 50 76 100 100 Average Speed 102 | 153 98 100 100 Slowest Speed 300 | 300 200 100 100 Overloaded Moves . | . . . . Propulsion Burnouts . | . . . . Robots Hopped . | . . . . Potential Cave-ins . | . . . . Cave-ins Triggered 1 | . . 1 . Exploration Rate (%) 35 | 5 93 28 16 Regions Visited 3 Branch Regions 2 Pre-discovered Areas 1 | . 1 . . Known Exits Taken 3 | 1 1 1 . Unknown Exits Taken . | . . . . Scrap Searched 1 | . . . 1 Spaces Dug 10 | . 10 . . Terrain Destroyed 10 | . 10 . . Melee . | . . . . Projectile 10 | . 10 . . AOE . | . . . . Terrain Rammed . | . . . . Walls Destroyed . | . . . . Machines Disabled . | . . . . Actions | -11 -10 -10 -10 --------- Run | Yrd Mat Min Sub Total 1435 | 99 865 106 365 Wait 73 | 5 58 7 3 Move 1252 | 78 733 90 351 Hop . | . . . . Pick Up 9 | 3 4 2 . Fast Attach 19 | 8 10 . 1 Attach 2 | . . . 2 Detach 4 | 1 2 . 1 Swap 10 | . 10 . . Drop 19 | . 14 1 4 Fire 47 | 4 34 6 3 Melee . | . . . . Ram . | . . . . Kick . | . . . . Crush . | . . . . Escape Stasis . | . . . . Rewire . | . . . . Trap . | . . . . Miscellaneous . | . . . . Route ------- -11/Scrapyard -10/Materials (discovered 5 exits: *Mat x3 / *Min / Sub) -10/Mines (discovered 3 exits: Mat x2 / *Sub) -10/Subcaves History --------- Turn | Location | Event 10 | -11/Scrapyard | Identified exit to Materials 10 | -11/Scrapyard | Discovered exit to Materials (range 16) 153 | -11/Scrapyard | Entered Materials 153 | -10/Materials | Evolved 1 slot: Utility x1 302 | -10/Materials | Build established: Hacker-Mutant 369 | -10/Materials | Identified exit to Materials 369 | -10/Materials | Discovered exit to Materials (range 16) 504 | -10/Materials | Discovered exit to Materials (range 8) 550 | -10/Materials | Discovered exit to Materials (range 16) 853 | -10/Materials | Derelicts attacked the area 865 | -10/Materials | Learned location of 2 exits from Mines 908 | -10/Materials | Identified exit to Subcaves 908 | -10/Materials | Identified exit to Mines 964 | -10/Materials | Learned Storage trap positions 999 | -10/Materials | Learned location of 2 exits from Mines 1088 | -10/Materials | Entered Mines 1128 | -10/Mines | Assembled infested the area 1182 | -10/Mines | Core integrity fell below 50% 1195 | -10/Mines | Crushed by falling debris 1195 | -10/Mines | Core integrity fell below 20% 1206 | -10/Mines | Entered Subcaves 1207 | -10/Subcaves | Approached by a straggling Scientist 1230 | -10/Subcaves | Lost 3 parts (1p1u1w) 1572 | -10/Subcaves | Core destroyed Last Messages --------------- 01290_ Acquired 10 matter. 9V-RCG(c): "I think it's somewhere northeast of here" 01332_ System corrupted: Matter fused (-8). 9V-RCG(c): "I think it's somewhere northeast of here" 9V-RCG(c): "I think it's somewhere east of here" 9V-RCG(c): "I think it's somewhere northeast of here" 01539_ System corrupted: Matter fused (-10). 01549_ Searching scrap... 01549_ Found Flamer. 01549_ Found 55 Matter. 01550_ Acquired 18 matter. 01561_ S-10 Pest destroyed. 9V-RCG(c): "I think it's somewhere north of here" 01566_ S-10 Pest destroyed. 01568_ Acquired 10 matter. 01571_ Acquired Lgt. Assault Rifle. Map ----- +----------------------------------------------------+ | ?????????????????????????????????????????????????? | | ?????????????????????????????????????????????????? | | ?????????????????????????????????????????????????? | | ?????????????????????????????????????????????????? | | ?????????????????????????????????????????????????? | | ?????????????????????????????????????????????????? | | ?????????????????????????????????????????????????? | | ?????????????????????????????????????????????????? | | ?????????????????????????????????????????????????? | | ?????????????????????????????????????????????????? | | ?????????????????????????????????????????????????? | | ?????????????????????????????????????????????????? | | ???????????????????# ???????????????????????????? | | ???????????????????## ???????????????????????????? | | ???????????????????## ???????????????????????????? | | ???????????????????## ???????????????????????????? | | ???????????????????## ??????????????????????????? | | ??????????????????### ????????????????????????? | | ??????????????????### ###???????????????????????? | | ??????????????????## ####?????????????????????? | | ??????????????????### ### ???????????????????? | | ???????????????????## ### ???????????????????? | | ##????????????????????? ##???????????????????? | | ###????????????????????##* ###???????????????????? | | ###????????????????????##%###????????????????????? | | ##???????????????????###@####???????????????????? | | ###????????????????? ### =###???????????????????? | | ##?????????????????? ###[##*##???????????????????? | | ##????????????????# # #% ###??????????????????? | | ##????????????????## #|## ###?????????????????? | | ##????????????????### ## # ####???????????????? | | ####??????????????######## ## ###???????????????? | | #####??????????????######### ## ##???????????????? | | ###???????????????## # # # ###???????????????? | | ##???????????????### # ####???????????????? | | ##???????????????###" ## # ###????????????????? | | ###???????????????##" "## ###???????????????? | | #####??????????????#### "## ### ???????????????? | | ####???????????????### ""###""" ?????????????? | | #####??????????????## """""??????????????? | | #############??????## " #####??????????????? | | ## ################## " #####??????????????? | | # ### ########### """ ###????????????????? | | ### ##### """"" ##????????????????? | | ## #### """""" ##????????????????? | | ## #### """" #????????????????? | | # ### "" """ "#????????????????? | | ## "" "" ##????????????????? | | ## "" "" "" ##????????????????? | | ## "" ### ##### ###### " ##????????????????? | +----------------------------------------------------+ Best States ------------- Heat Dissipation 25 Energy Generation 10 Energy Capacity 250 Matter Stores 300 Matter Capacity 300 Sight Range 16 Terrain Scan Range 14 Terrain Scan Density 10 Armor Coverage 150 Resistance: KI 35 Resistance: TH 35 Resistance: EX 35 Resistance: EM 35 Resistance: I 35 Resistance: S 35 Resistance: P 35 Evasion (%) 55 Offensive Hacking 20 Item Schematics ----------------- None Robot Schematics ------------------ None Fabricated ------------ Nothing Repaired ---------- Nothing Studied --------- None Alien Tech Used ----------------- None Achievements -------------- None Challenges ------------ None Player 2 | -11 -10 -10 -10 ---------- Run | Yrd Mat Min Sub Slots Evolved . | . . . . Power . | . . . . Propulsion . | . . . . Utility . | . . . . Weapon . | . . . . Parts Attached 16 | . 10 2 4 Parts Lost 7 | . . 5 2 Damage Taken 1015 | . 99 614 302 Core 161 | . 10 131 20 Player 2/Cogmind (%) 64 | . 21 72 83 Absorbed by Shields . | . . . . Damage Inflicted 346 | . 253 93 . Player 2/Cogmind (%) 34 | . 36 43 . Combat Hostiles Destroyed 3 | . 3 . . Player 2/Cogmind (%) 21 | . 30 . . Game ------ Seed ProjectileReinforcedFilter Manual? 0 Play Time 00:19:11 Cumulative 97.0 hours Start 2025.11.22 @ 15:05:40 End 2025.11.22 @ 15:22:55 Sessions 1 Manual Loads 0 Difficulty Explorer Special Mode AFD2020/Player2 Game No. 24 Rogue 0 Adventurer 3 Explorer 21 Win Type - Total 11 Types 4/1/1/2/0/0/1/0/0/2 Lore% 58 Gallery% 47 Achievement% 46 Wizard Run 0 Options --------- Layout 2 ASCII 0 Keyboard 0 Movement Mouse Keybinds 0 Fullscreen 1 Font 24/Smallcaps Map View 50x44 Zoom Use 0% Tactical HUD 1 Map Filters NONE Filters NONE Steam 1 RUN: 8940cdf9-b141-45ce-9c46-b98b0656bb8f